Cogmind - Beta 14 @@@ ROGUE MODE // 2024.09.04 @ 03:09:08 Player: Beef Result: Destroyed by Y5-GSW(R) with Subdweller Beam Cannon Performance ------------- Evolutions (0) 0 Regions Visited (3) 600 Robots Destroyed (33) 165 Value Destroyed (900) 900 Prototype IDs (0) 0 Alien Tech Used (0) 0 Bonus (-58) -58 TOTAL SCORE: 1607 Bonus ------- Friendly Fire -58 Cogmind --------- Core Integrity 0/250 Matter 268/300 Energy 158/160 System Corruption 0% Temperature Cool (9) Movement Rolling (110) Location -10/Subcaves Parts ------- > --- POWER (1) -------- Light Nuclear Core > --- PROPULSION (2) --- Subdweller Monowheel Subdweller Monowheel > --- UTILITY (2) ------ (None) > --- WEAPON (2) ------- Beam Rifle Subdweller Machine Gun > --- INVENTORY (5) ---- Subdweller Power Source Subdweller Power Source Subdweller Monowheel Small Storage Unit Improved Terrain Scanner Peak State ------------ > --- POWER ------------ Light Nuclear Core > --- PROPULSION ------- Subdweller Monowheel Subdweller Monowheel > --- UTILITY ---------- Scrap Shield > --- WEAPON ----------- Beam Rifle Subdweller Machine Gun > --- INVENTORY -------- Subdweller Power Source Subdweller Power Source Subdweller Monowheel Small Storage Unit Improved Terrain Scanner [Rating: 16] Favorites ----------- Power Light Ion Engine Engine Light Ion Engine Power Core Light Nuclear Core Propulsion Aluminum Leg Leg Aluminum Leg Wheel Subdweller Monowheel Utility Small Storage Unit Device Improved Terrain Scanner Storage Small Storage Unit Protection Scrap Shield Weapon Assault Rifle Energy Gun Beam Rifle Ballistic Gun Assault Rifle Launcher Grenade Launcher Special Weapon Mining Laser Build | -11 -10 -10 -10 ------- Run | Yrd Mat Min Sub Slots Evolved . | . . . . Power . | . . . . Propulsion . | . . . . Utility . | . . . . Weapon . | . . . . Parts Attached 47 | 7 12 5 23 Power 8 | 1 1 . 6 Engine 7 | 1 1 . 5 Core 1 | . . . 1 Reactor . | . . . . Propulsion 13 | 2 3 . 8 Treads . | . . . . Leg 9 | 2 3 . 4 Wheel 4 | . . . 4 Hover . | . . . . Flight . | . . . . Utility 6 | 2 . . 4 Device 2 | 1 . . 1 Storage 2 | 1 . . 1 Processor . | . . . . Hackware . | . . . . Protection 2 | . . . 2 Artifact . | . . . . Weapon 20 | 2 8 5 5 Energy Gun 5 | . . 3 2 Energy Cannon . | . . . . Ballistic Gun 10 | 2 6 1 1 Ballistic Cannon . | . . . . Launcher 3 | . 2 . 1 Special Weapon 2 | . . 1 1 Impact Weapon . | . . . . Slashing Weapon . | . . . . Piercing Weapon . | . . . . Special Melee Weapon . | . . . . Unidentified Prototypes . | . . . . Parts Lost 10 | . . 1 9 Power 2 | . . . 2 Propulsion 2 | . . . 2 Utility 2 | . . . 2 Weapon 4 | . . 1 3 Highest Loss Streak 3 | . . 1 3 To Critical Strikes . | . . . . Average Slot Usage (%) 93 | . 100 100 87 Engine 11 | . 14 14 9 Core 1 | . . . 2 Leg 21 | . 28 28 15 Wheel 6 | . . . 11 Device 9 | . 14 14 4 Storage 9 | . 14 14 4 Protection 4 | . . . 8 Energy Gun 7 | . . 8 13 Ballistic Gun 18 | . 27 17 11 Special Weapon 1 | . . 2 1 Peak Build Rating 16 | 9 10 12 16 Average Rating 10 | 6 9 11 12 On Entrance 7 | . 9 10 12 Naked Turns . | . . . . Heaviest Build 30 | 12 16 17 30 Greatest Support 40 | 20 20 20 40 Greatest Overweight (x) 1 | . . . 1 Average Overweight (x) . | . . . . Largest Inventory Capacity 8 | 8 8 8 8 Average Capacity 6 | 7 8 8 5 Most Carried 8 | 4 8 8 8 Average Carried 5 | 1 7 7 5 Final Capacity 8 | 8 8 8 5 Final Carried 8 | 2 8 8 5 Class Distribution -------------------- 57% | Mutant 27% | Scavenger-Mutant 14% | Subdweller-Mutant Dominant Class ---------------- Mutant | -10/Materials Scavenger-Mutant | -10/Mines Scavenger-Mutant | -10/Subcaves Resources | -11 -10 -10 -10 ----------- Run | Yrd Mat Min Sub Matter Collected 992 | 272 317 58 345 Remotely . | . . . . Salvage Created 1100 | 77 423 116 484 Parts 88 | 6 38 8 36 Haulers Intercepted . | . . . . Recyclers Shooed 1 | 1 . . . Parts Field Recycled . | . . . . Retrieved Matter . | . . . . Parts Self-Destructed 6 | . . . 6 Prevented . | . . . . Kills | -11 -10 -10 -10 ------- Run | Yrd Mat Min Sub Combat Hostiles Destroyed 26 | . 12 2 12 Guns 20 | . 6 2 12 AOE 6 | . 6 . . Classes Destroyed 9 | 2 5 1 1 Worker 1 | . 1 . . Tunneler 1 | 1 . . . Recycler 2 | 1 1 . . Mechanic 1 | . 1 . . Watcher 2 | . 2 . . Swarmer 6 | . 6 . . Grunt 8 | . 6 . 2 Sentry 2 | . . 2 . Subdweller 10 | . . . 10 Best Kill Streak 6 | 1 6 2 2 Combat Bots Only 5 | . 5 2 2 Max Kills in Single Turn 2 | 1 2 1 1 Gunslinging . | . . . . Exploded 2 | . 2 . . Melee . | . . . . Uniques/NPCs Destroyed . | . . . . Combat | -11 -10 -10 -10 -------- Run | Yrd Mat Min Sub Hostile Shots Fired 171 | . 68 28 75 Missed 59 | . 26 8 25 Damage Taken 1816 | . 533 296 987 Core 275 | . 94 47 134 Absorbed by Shields . | . . . . Core Remaining (%) 100 | 100 . . . Volleys Fired 123 | 16 35 14 58 Largest 2 | 2 2 2 2 Hottest 112 | 40 40 100 112 Shots Fired 222 | 32 63 20 107 Gun 202 | 32 56 15 99 Cannon . | . . . . Launcher 9 | . 7 . 2 Special 11 | . . 5 6 Kinetic 133 | 32 56 14 31 Thermal 80 | . . 6 74 Explosive 9 | . 7 . 2 Electromagnetic . | . . . . Robot Hit Streak 24 | 3 9 10 24 Robot Miss Streak 3 | 2 3 1 3 Penetration Max . | . . . . Secondary Targets 1 | . . . 1 Max Gunslinging Chain 1 | . . . 1 Shots Hit Robots 132 | 14 37 12 69 Core Hits 61 | 4 29 5 23 Critical Kills 1 | . . . 1 Critical Parts Destroyed . | . . . . Critical Strikes 6 | . . . 6 Burn 5 | . . . 5 Destroy 1 | . . . 1 Melee Attacks . | . . . . Impact . | . . . . Slashing . | . . . . Piercing . | . . . . Sneak Attacks . | . . . . Combat Hostiles . | . . . . Follow-up Attacks . | . . . . Damage Inflicted 2268 | 163 856 121 1128 Guns 1772 | 163 456 121 1032 Cannons . | . . . . Explosions 492 | . 396 . 96 Melee . | . . . . Ramming 4 | . 4 . . Kinetic 1043 | 163 456 106 318 Thermal 729 | . . 15 714 Explosive 492 | . 396 . 96 Electromagnetic . | . . . . Impact . | . . . . Slashing . | . . . . Piercing . | . . . . Highest Corruption . | . . . . Average Corruption . | . . . . Corruption Purged . | . . . . Corruption Blocked . | . . . . Overload Shots . | . . . . Overflow Damage 16 | . 16 . . Projectiles . | . . . . Explosions 16 | . 16 . . Melee . | . . . . Knockbacks . | . . . . Impact . | . . . . Kinetic . | . . . . Secondary . | . . . . Self-Inflicted Damage 61 | . 61 . . Shots 3 | . 3 . . Rammed . | . . . . Targets Rammed 2 | . 2 . . Kicked 2 | . 2 . . Crushed . | . . . . Highest Temperature 259 | . 12 64 259 Average Temperature 36 | . 5 24 68 Received Heat Transfer 854 | . 168 108 578 Siege Activations . | . . . . Robots Corrupted . | . . . . Combat Hostiles . | . . . . Parts Fried . | . . . . Impact Corruptions . | . . . . Robots Melted . | . . . . Combat Hostiles . | . . . . Parts Melted 4 | . . . 4 Heat Transferred 2220 | . . 37 2183 Parts Sabotaged . | . . . . Parts Stolen . | . . . . Parts Stripped . | . . . . Power Chain Reactions . | . . . . Alert | -11 -10 -10 -10 ------- Run | Yrd Mat Min Sub Peak Influence 275 | 10 275 151 . Initial 106 | . 6 106 . Average 105 | 4 112 140 . Maximum Alert Level 1 | . 1 . . Low Security (%) 95 | 100 93 100 . Level 1 4 | . 6 . . Level 2 . | . . . . Level 3 . | . . . . Level 4 . | . . . . Level 5 . | . . . . High Security . | . . . . Max Security . | . . . . Squads Dispatched 2 | . 2 . . Investigation 1 | . 1 . . Extermination . | . . . . Reinforcement 1 | . 1 . . Assault . | . . . . Garrison . | . . . . Intercept . | . . . . Searches Triggered . | . . . . Construction Impeded . | . . . . Haulers Reinforced . | . . . . Active Scanning Responses . | . . . . Cargo Convoy Interrupts . | . . . . Stealth | -11 -10 -10 -10 --------- Run | Yrd Mat Min Sub Distress Signals 1 | . 1 . . Communications Jammed . | . . . . Distress Signals . | . . . . Times Spotted 39 | . 22 2 15 Peak Tracking Total 4 | . 4 2 2 Tactical Retreats 2 | . 1 . 1 Traps | -11 -10 -10 -10 ------- Run | Yrd Mat Min Sub Traps Triggered 1 | . 1 . . Indirectly . | . . . . Trap Hack Attempts . | . . . . Triggered . | . . . . Disarmed . | . . . . Reprogrammed . | . . . . Reused . | . . . . Traps Extracted . | . . . . Installed . | . . . . Triggered . | . . . . Machines | -11 -10 -10 -10 ---------- Run | Yrd Mat Min Sub Machines Disabled . | . . . . Max in Single Turn . | . . . . Machines Repaired . | . . . . Machines Dismantled . | . . . . Machines Sabotaged . | . . . . Overloaded Fab Kills . | . . . . Hacking | -11 -10 -10 -10 --------- Run | Yrd Mat Min Sub Machines Accessed 5 | . 5 . . Terminals 5 | . 5 . . Fabricators . | . . . . Repair Stations . | . . . . Recycling Units . | . . . . Scanalyzers . | . . . . Garrison Access . | . . . . Total Hacks 18 | . 18 . . Successful 8 | . 8 . . Failed 10 | . 10 . . Catastrophic 1 | . 1 . . Database Lockouts . | . . . . Manual 17 | . 17 . . Terminals 18 | . 18 . . Fabricators . | . . . . Repair Stations . | . . . . Recycling Units . | . . . . Scanalyzers . | . . . . Garrison Access . | . . . . Terminal Hacks 3 | . 3 . . Level Access Points 1 | . 1 . . Terminal Index 1 | . 1 . . Zone Layout 1 | . 1 . . Fabricator Hacks . | . . . . Repair Station Hacks . | . . . . Recycling Unit Hacks . | . . . . Scanalyzer . | . . . . Garrison Access Hacks . | . . . . Unauthorized Hacks 5 | . 5 . . Terminals 5 | . 5 . . Assimilate 1 | . 1 . . Botnet 4 | . 4 . . Fabricators . | . . . . Repair Stations . | . . . . Recycling Units . | . . . . Scanalyzers . | . . . . Garrison Access . | . . . . Data Cores Recovered . | . . . . Used . | . . . . Hacking Detections 5 | . 5 . . Full Trace Events 2 | . 2 . . Feedback Events . | . . . . Feedback Blocked . | . . . . Robot Schematics Acquired . | . . . . Robots Built . | . . . . Authchips . | . . . . Time . | . . . . Total Robot Build Rating . | . . . . Part Schematics Acquired . | . . . . Parts Built . | . . . . Authchips . | . . . . Time . | . . . . Total Part Build Rating . | . . . . Parts Repaired . | . . . . Time . | . . . . Parts Recycled . | . . . . Recycled Matter . | . . . . Retrieved Matter . | . . . . Retrieved Components . | . . . . Parts Scanalyzed . | . . . . Part Schematics Acquired . | . . . . Parts Damaged . | . . . . Bothacking | -11 -10 -10 -10 ------------ Run | Yrd Mat Min Sub Used RIF Installer . | . . . . Robots Hacked . | . . . . Non-combat . | . . . . Combat . | . . . . Robot Hacks Applied . | . . . . Relay Couplers Released . | . . . . Fabnet Peak Effective % . | . . . . Robots Rewired . | . . . . Allies Hacked . | . . . . Hacks Repelled . | . . . . Allies | -11 -10 -10 -10 -------- Run | Yrd Mat Min Sub Total Allies 1 | . 1 . . Largest Group 1 | . 1 . . Highest-Rated Group 10 | . 10 . . Highest-Rated Ally 10 | . 10 . . Total Orders . | . . . . Ally Attacks . | . . . . Total Damage . | . . . . Kills . | . . . . Allies Corrupted . | . . . . Allies Melted . | . . . . Intel | -11 -10 -10 -10 ------- Run | Yrd Mat Min Sub Robot Analysis Total . | . . . . Derelict Logs Recovered . | . . . . Drone Launches . | . . . . Drone Recoveries . | . . . . Exploration | -11 -10 -10 -10 ------------- Run | Yrd Mat Min Sub Turns Passed 2070 | 129 711 220 1010 Spaces Moved 1287 | 63 471 117 636 Core 8 | 8 . . . Treads . | . . . . Legs 891 | 55 471 117 248 Wheels 388 | . . . 388 Hover . | . . . . Flight . | . . . . Fastest Speed 50 | 50 120 120 110 Average Speed 120 | 111 120 120 121 Slowest Speed 190 | 120 120 120 190 Overloaded Moves . | . . . . Propulsion Burnouts . | . . . . Robots Hopped . | . . . . Cave-ins Triggered . | . . . . Exploration Rate (%) 33 | 4 77 26 28 Regions Visited 3 Branch Regions 2 Pre-discovered Areas . | . . . . Known Exits Taken . | . . . . Unknown Exits Taken 3 | 1 1 1 . Scrap Searched 3 | . . . 3 Spaces Dug . | . . . . Terrain Destroyed 58 | . 50 . 8 Melee . | . . . . Projectile . | . . . . AOE 58 | . 50 . 8 Terrain Rammed . | . . . . Walls Destroyed . | . . . . Machines Disabled . | . . . . Actions | -11 -10 -10 -10 --------- Run | Yrd Mat Min Sub Total 1570 | 91 555 168 756 Wait 53 | . 18 29 6 Move 1284 | 62 470 116 636 Hop . | . . . . Pick Up 30 | 5 10 1 14 Fast Attach 12 | 5 . 1 6 Attach 9 | 2 . . 7 Detach 2 | . . . 2 Swap 26 | . 12 4 10 Drop 28 | 1 8 3 16 Fire 123 | 16 35 14 58 Melee . | . . . . Ram . | . . . . Kick 2 | . 2 . . Crush . | . . . . Escape Stasis . | . . . . Rewire . | . . . . Trap . | . . . . Miscellaneous 1 | . . . 1 Route ------- -11/Scrapyard -10/Materials (discovered 4 exits: *Mat x3 / [*Min]) -10/Mines (discovered 2 exits: *Mat / [*Sub]) -10/Subcaves History --------- Turn | Location | Event 4 | -11/Scrapyard | Discovered new exit (range 15) 130 | -11/Scrapyard | Entered Materials 248 | -10/Materials | Discovered new exit (range 16) 316 | -10/Materials | Build established: Mutant 369 | -10/Materials | Identified exit to Materials 720 | -10/Materials | Discovered new exit (range 9) 841 | -10/Materials | Entered Mines 884 | -10/Mines | Core integrity fell below 50% 950 | -10/Mines | Discovered exit to Materials (range 8) 1057 | -10/Mines | Discovered new exit (range 2) 1061 | -10/Mines | Entered Subcaves 1309 | -10/Subcaves | A swath of the cavern ceiling suddenly collapsed 1614 | -10/Subcaves | Lost 3 parts (1p1u1w) 1732 | -10/Subcaves | Core integrity fell below 20% 1820 | -10/Subcaves | A swath of the cavern ceiling suddenly collapsed 2071 | -10/Subcaves | Destroyed by Y5-GSW(R) with Subdweller Beam Cannon Last Messages --------------- 01865_ Acquired 56 matter. 01869_ Acquired 39 matter. 01872_ Aluminum Leg fries itself beyond repair. 01873_ Sml. Laser fries itself beyond repair. 01965_ Y5-GSW(R): "OHNO!" 01965_ NY-8J5(R): "MADSUB!" 02048_ Scrap Shield destroyed. 02052_ NY-8J5(R) destroyed. 02068_ Searching scrap... 02068_ Found Sub. Machine Gun. 02068_ Found Sub. Monowheel. 02068_ Found 48 Matter. 02069_ Acquired 48 matter. 02070_ Searching scrap... 02070_ Found Sub. Machine Gun. 02070_ Found 31 Matter. 02071_ Acquired 31 matter. 02071_ Searching scrap... 02071_ Found Humpback. 02071_ Found 34 Matter. Map ----- +----------------------------------------------------+ | ##?????????????????????????? ?## | | ##?#??????????????????????? ?## | | ###??????????????????????????# #?# | | #""?????????????????????????????# ## | | ##???????????????????????????????# ## | | #?#????????"????????????????###### ##### | | #?######?????? ?######??????### ### # #??# | | ### ##?????? # #??????# ### # ##??? | | #??????? ##??????# ## ## ###?? | | #???????## "#??##### # # ##? | | # #####?###" "#### # #? | | ###= ### " ## #? | | #### ### ## #? | | ##??# " #?# #?## #? | | #???#######"""" ### #?###### #? | | " #?????????##""## ### #### ###? | | ###??????????#"""#" # # # ## ## ##??? | | ????????????######## ##### ## ####?? | | ?????????????# ???# #??# ### # ## ##? | | ????????????? #???## ##??## ### #? | | ????????????? ???# #### ### #? | | ?????????????% ???# &#[ # ### ## #? | | ????????????&! ??#### &&%=& ####### #? | | ????????????=% ??#"#"#[### # #?## #? | | ????????????## ??#"""##R<## ######## ### ## | | ?????????????# ??###"#<[@<# #??????## ### # | | ??????????????# ????# #<$!<# ##??????#### ### | | ??????????????? ????# ##<<## #?????????#### ##?? | | ??????????????? ????# #### ##????????????###???? | | ????????????????????## ##???????????????????? | | ?????????????????????########????????????????????? | | ?????????????????????????????????????????????????? | | ?????????????????????????????????????????????????? | | ?????????????????????????????????????????????????? | | ?????????????????????????????????????????????????? | | ?????????????????????????????????????????????????? | | ?????????????????????????????????????????????????? | | ?????????????????????????????????????????????????? | | ?????????????????????????????????????????????????? | | ?????????????????????????????????????????????????? | | ?????????????????????????????????????????????????? | | ?????????????????????????????????????????????????? | | ?????????????????????????????????????????????????? | | ?????????????????????????????????????????????????? | | ?????????????????????????????????????????????????? | | ?????????????????????????????????????????????????? | | ?????????????????????????????????????????????????? | | ?????????????????????????????????????????????????? | | ?????????????????????????????????????????????????? | | ?????????????????????????????????????????????????? | +----------------------------------------------------+ Best States ------------- Heat Dissipation 25 Energy Generation 15 Energy Capacity 250 Matter Stores 300 Matter Capacity 300 Sight Range 16 Terrain Scan Range 16 Terrain Scan Density 10 Armor Coverage 800 Evasion (%) 55 Item Schematics ----------------- None Robot Schematics ------------------ None Fabricated ------------ Nothing Alien Tech Used ----------------- None Achievements -------------- None Challenges ------------ None Game ------ Seed ReactionPrecisionField Manual? 0 Play Time 00:13:15 Cumulative 118.1 hours Start 2024.09.04 @ 02:56:39 End 2024.09.04 @ 03:09:08 Sessions 1 Manual Loads 0 Difficulty Rogue Special Mode None Game No. 137 Rogue 137 Adventurer 0 Explorer 0 Win Type - Total 2 Types 2/0/0/0/0/0/0/0/0 Lore% 55 Gallery% 64 Achievement% 48 Wizard Run 0 Options --------- Layout 0 ASCII 0 Keyboard 1 Movement Numpad Keybinds 0 Fullscreen 2 Font 18/SmallcapsGlow Map View 76x50 Zoom Use 0% Tactical HUD 1 Map Filters NONE Filters NONE Steam 1 RUN: f25e530b-dbc8-4cf4-9743-4e0ebc61acec